bitfinex-derivatives/quotes_ETHF0:USTF0_20250410
["timestamp","ask_amount","ask_price","bid_price","bid_amount"]
[1744305660225,8.73604319,1493.0,1492.7,13.56924319]
[1744305660430,1.34067,1492.8,1492.7,8.56924319]
[1744305661025,1.34067,1492.8,1492.2,3.2078]
[1744305661026,8.35187,1492.8,1492.2,3.2078]
[1744305661232,1.34124,1492.2,1492.0,4.54919]
[1744305661432,1.34124,1492.2,1492.1,8.5592]
[1744305661733,1.34175,1491.6,1491.5,5.2599]
[1744305661935,1.34184,1491.5,1491.4,3.2078]
[1744305662130,8.729,1491.9,1491.4,3.2078]
[1744305662337,0.01004319,1491.6,1491.5,4.54959]
[1744305662532,1.35179319,1491.6,1491.4,1.34186]
[1744305662728,1.34184,1491.5,1491.3,4.55980319]
[1744305662929,0.01004319,1491.6,1491.3,3.21784319]
[1744305662930,1.34193,1491.4,1491.3,3.21784319]
[1744305663235,1.34193,1491.4,1491.3,8.10384319]
[1744305663835,6.34193,1491.4,1491.3,0.01004319]
[1744305664036,9.54973,1491.4,1491.3,3.19e-06]
[1744305664230,119.80533,1491.4,1491.3,3.19e-06]
[1744305665034,14.42453,1491.4,1491.3,3.19e-06]
[1744305665232,8.729,1491.5,1491.3,3.19e-06]
[1744305665433,10.07084,1491.5,1491.3,4.54979319]
[1744305665635,8.729,1491.5,1491.4,10.22663]
[1744305665831,1.34184,1491.5,1491.4,8.8847]
[1744305666040,1.35179319,1491.6,1491.4,10.22658]
[1744305666233,1.35179319,1491.6,1491.5,1.34184]
[1744305666234,0.01004319,1491.6,1491.5,1.34184]
[1744305666739,0.01004319,1491.6,1491.5,4.54964]
[1744305666935,1.34162,1491.8,1491.6,1.34173]
[1744305667138,11.9398,1492.1,1491.7,12.0925]
[1744305667335,1.34149,1491.9,1491.7,13.43411]
[1744305667636,1.34157,1491.8,1491.7,8.8847]
[1744305668334,1.34184,1491.5,1491.4,3.2078]
[1744305668540,1.34184,1491.5,1491.4,11.5224]
[1744305669035,0.01004319,1491.9,1491.4,17.86427]
[1744305669240,0.03136347,1491.7,1491.4,11.5224]
[1744305669837,1.34176,1491.6,1491.4,12.86429]
[1744305670037,3.2078,1491.6,1491.3,3.19e-06]
[1744305670343,4.54973,1491.4,1491.3,3.19e-06]
[1744305670531,6.56265,1491.4,1490.7,9.65713]
[1744305670733,1.34247,1490.8,1490.7,49.1146]
[1744305671041,10.04446,1490.9,1490.7,8.3146]
[1744305671341,0.03136347,1490.8,1490.7,50.45711]
[1744305671543,0.03136347,1490.8,1490.7,53.66491]
[1744305671836,0.01004319,1490.9,1490.8,1.34247]
[1744305672027,8.702,1491.2,1490.7,44.0078]
[1744305672228,8.702,1491.2,1490.6,8.38594319]
[1744305672229,15.26519,1491.2,1490.6,8.38594319]
[1744305672432,15.26519,1491.2,1490.7,3.2078]
[1744305672636,8.702,1491.2,1490.9,3.2078]
[1744305673038,1.34222,1491.1,1490.9,3.2078]
[1744305673239,8.71204319,1491.2,1490.7,9.3484]
[1744305673534,8.71204319,1491.2,1490.9,1.34232]
[1744305673728,1.35219319,1491.2,1491.0,1.34226]
[1744305673929,0.01004319,1491.2,1490.7,5.992]
[1744305674139,3.2078,1491.1,1490.7,5.992]
[1744305674336,1.3424,1490.9,1490.7,5.992]
[1744305674637,1.34241,1490.9,1490.6,11.17014319]
[1744305674836,1.34256,1490.7,1490.0,5.992]
[1744305675140,3.2078,1490.3,1489.6,3.2078]
[1744305675334,3.2078,1490.3,1489.4,5.992]
[1744305675335,6.56601,1489.9,1489.2,6.10196607]
[1744305675538,3.35869,1489.7,1489.2,1.45380607]
[1744305675739,15.28501,1489.9,1489.3,44.0078]
[1744305675939,6.56601,1489.9,1489.3,44.0078]
[1744305676233,0.01004319,1489.7,1489.6,1.34355]
[1744305676440,1.34327,1490.0,1489.6,3.2078]
[1744305676741,1.34328,1489.9,1489.8,1.34334]
[1744305676940,3.2078,1490.2,1489.9,1.34322]
[1744305677238,1.34313,1490.1,1489.7,3.2078]
[1744305677436,1.34334,1489.9,1489.6,3.2078]
[1744305677631,0.01004319,1490.0,1489.9,1.34328]
[1744305677837,1.34304,1490.2,1490.0,1.34315]
[1744305678443,6.56489,1490.4,1490.0,1.34315]
[1744305678747,3.35753,1490.2,1489.7,4.8767]
[1744305678937,1.34337,1489.8,1489.7,4.8767]
[1744305679136,1.34355,1489.6,1489.5,0.01004319]
[1744305680436,1.34341,1489.8,1489.5,5.01004319]
[1744305680742,0.01004319,1490.1,1489.6,3.2078]
[1744305680944,1.34345,1489.8,1489.6,4.5513]
[1744305681139,3.35798,1490.0,1489.6,4.5513]
[1744305681439,1.34349,1489.7,1489.6,1.34352]
[1744305681634,14.85701,1490.0,1489.6,1.34352]
[1744305681835,1.34354,1489.7,1489.5,1.35361319]
[1744305682030,1.3435,1489.7,1489.6,1.34355]
[1744305682432,1.34355,1489.6,1489.5,0.01004319]
[1744305682633,14.85701,1490.0,1489.6,1.34348]
[1744305682832,1.34355,1489.6,1489.5,1.35365319]
[1744305683039,1.34351,1489.7,1489.5,1.35365319]
[1744305683238,1.34355,1489.6,1489.5,0.01004319]
[1744305684046,6.34355,1489.6,1489.5,0.01004319]
[1744305684539,9.55135,1489.6,1489.5,3.19e-06]
[1744305684740,1.34382,1489.3,1489.2,6.07e-06]
[1744305685045,13.26262,1489.3,1489.2,6.07e-06]
[1744305685238,18.26262,1489.3,1489.2,6.07e-06]
[1744305685438,18.26262,1489.3,1487.9,8.714]
[1744305685439,3.35988,1489.2,1487.9,3.2078]
[1744305685637,3.2078,1488.5,1488.1,1.34484]
[1744305685839,13.26641,1488.5,1488.4,0.01004319]
[1744305686133,3.21784319,1488.7,1488.4,0.01004319]
[1744305686338,3.21784319,1488.7,1488.6,1.34445]
[1744305686641,0.01004319,1488.7,1488.6,1.34445]
[1744305687042,0.01004319,1488.7,1488.6,6.34445]
[1744305687241,1.34435,1488.8,1488.4,0.01004319]
[1744305687546,4.55204,1488.9,1488.7,1.34432]
[1744305687845,3.2078,1488.9,1488.8,1.34427]
[1744305688030,4.55207,1488.9,1488.4,3.21784319]
[1744305688231,0.01007861,1488.8,1488.6,1.34444]
[1744305688441,0.01007861,1488.8,1488.6,1.34438]
[1744305688635,0.01007861,1488.8,1488.6,1.3444]
[1744305688946,0.01007861,1488.8,1488.7,4.55216]
[1744305689135,1.34393,1489.2,1489.0,1.34409]
[1744305689337,3.2078,1489.1,1488.5,3.36135]
[1744305689641,3.2078,1488.7,1488.4,0.01004319]
[1744305689837,4.55234,1488.5,1488.4,0.01004319]
[1744305690037,4.55234,1488.5,1488.4,3.19e-06]
[1744305690244,9.55234,1488.5,1488.4,3.19e-06]
[1744305690443,4.55234,1488.5,1488.4,3.19e-06]
[1744305690644,9.55234,1488.5,1488.4,3.19e-06]
[1744305691337,1.34509,1487.9,1487.8,40.8]
[1744305694140,0.01007861,1488.6,1488.4,8.1922]
[1744305694536,0.01007861,1488.6,1488.5,1.34454]
[1744305694735,3.2078,1489.1,1488.5,4.55234]
[1744305694944,11.9278,1489.3,1488.7,3.36091]
[1744305695145,19.52176452,1489.3,1488.7,3.36091]
[1744305695339,1.3443,1488.8,1488.7,1.34434]
[1744305695535,1.34425,1488.9,1488.7,1.34431]
[1744305695741,3.21787861,1488.9,1488.7,0.01007861]
[1744305695943,1.34433,1488.8,1488.7,0.01007861]
[1744305696143,1.34427,1488.8,1488.7,0.01007861]
[1744305696748,11.93787861,1488.9,1488.7,0.01007861]
[1744305697040,11.93787861,1488.9,1488.8,1.34427]
[1744305697041,0.01007861,1488.9,1488.8,1.34427]
[1744305698043,1.35425861,1488.9,1488.8,1.34427]
[1744305698246,3.21787861,1488.9,1488.7,0.01007861]
[1744305698448,1.34427,1488.8,1488.7,9.98859861]
[1744305698643,3.21787861,1488.9,1488.7,9.98859861]
[1744305698847,0.01007861,1488.9,1488.8,1.34427]
[1744305699349,1.34404,1489.1,1488.8,5.0]
[1744305699650,4.5518,1489.1,1489.0,1.34409]
[1744305700048,3.2078,1489.3,1488.9,11.99463]
[1744305700246,3.2078,1489.5,1489.4,1.34373]
[1744305700440,4.55133,1489.7,1489.5,1.34357]
[1744305700640,7.9019,1489.8,1489.4,8.6342]
[1744305700949,1.34298,1490.3,1489.9,3.35821]
[1744305701154,1.34281,1490.5,1490.0,11.59385]
[1744305701342,16.13326452,1490.6,1490.0,8.2359]
[1744305701642,1.3428,1490.5,1490.1,44.0078]
[1744305701848,10.80176452,1490.6,1490.2,9.57887]
[1744305702046,1.34292,1490.3,1490.2,8.2359]
[1744305702246,1.34301,1490.2,1490.1,40.8]
[1744305702438,13.09011,1490.2,1490.1,0.01007861]
[1744305702643,18.09011,1490.2,1490.1,0.01007861]
[1744305703240,13.09011,1490.2,1490.1,0.01007861]
[1744305703647,18.09011,1490.2,1490.1,0.01007861]
[1744305704039,13.09011,1490.2,1490.1,0.01007861]
[1744305704244,8.5393,1490.2,1490.1,1.35317861]
[1744305704447,8.5393,1490.2,1490.1,0.01007861]
[1744305704653,9.88231,1490.2,1490.1,0.01007861]
[1744305705049,14.88231,1490.2,1490.1,0.01007861]
[1744305705249,9.88231,1490.2,1490.1,0.01007861]
[1744305705644,13.24578,1490.3,1490.1,0.01007861]
[1744305705844,7.59396452,1490.6,1490.1,5.01007861]
[1744305706145,7.59396452,1490.6,1490.5,1.34274]
[1744305706348,7.59396452,1490.6,1490.2,11.49703]
[1744305706349,7.59396452,1490.6,1490.2,8.1395]
[1744305706561,1.34277,1490.5,1490.2,8.1395]
[1744305706850,1.34279,1490.5,1490.2,8.1395]
[1744305707051,1.34276,1490.5,1490.3,1.34292]
[1744305707253,1.34276,1490.5,1490.2,8.1395]
[1744305707254,4.55042,1490.7,1490.5,1.34274]
[1744305707458,4.55042,1490.7,1490.6,8.1487]
[1744305707650,1.34256,1490.7,1490.6,8.1487]
[1744305707850,10.04202,1490.8,1490.6,8.1487]
[1744305708050,1.34256,1490.7,1490.6,8.1487]
[1744305708357,1.34256,1490.7,1490.3,3.35731]
[1744305708548,8.6995,1490.8,1490.7,1.34256]
[1744305708758,0.02915446,1490.8,1490.6,8.1487]
[1744305708965,0.02915446,1490.8,1490.7,1.34256]
[1744305709368,7.59396452,1491.0,1490.9,1.34238]
[1744305709861,7.59396452,1491.0,1490.9,45.35018]
[1744305710065,7.59396452,1491.0,1490.9,42.14238]
[1744305710367,8.93625452,1491.0,1490.9,40.8]
[1744305710764,7.59396452,1491.0,1490.9,42.14238]
[1744305710964,8.93625452,1491.0,1490.9,40.8]
[1744305711166,1.34229,1491.0,1490.9,40.8]
[1744305711360,9.65789,1491.0,1490.9,40.8]
[1744305711663,3.35618,1490.8,1490.2,5.992]
[1744305711864,1.34283,1490.4,1490.3,9.33112]
[1744305712069,3.2078,1490.8,1490.6,1.34265]
[1744305712373,11.8978,1491.0,1490.9,1.34238]
[1744305712663,8.3156,1491.1,1490.7,14.55238]
[1744305712870,8.93608452,1491.2,1491.1,1.3422]
[1744305713065,10.80176452,1491.2,1490.7,10.6715]
[1744305713266,1.34232,1491.0,1490.9,1.34233]
[1744305713457,1.34238,1490.9,1490.8,1.78107861]
[1744305713662,8.1436,1491.1,1490.8,0.43867861]
[1744305713965,8.1436,1491.1,1490.9,8.0957]
[1744305714165,9.48586,1491.1,1490.9,8.0957]
[1744305714361,8.1436,1491.1,1491.0,1.34229]
[1744305714669,9.4858,1491.1,1491.0,1.34229]
[1744305715174,8.1436,1491.1,1491.0,1.34229]
[1744305715363,10.80176452,1491.2,1490.9,9.43806]
[1744305715566,9.48586,1491.1,1491.0,1.34229]
[1744305715765,1.34229,1491.0,1490.9,8.0957]
[1744305715961,8.1436,1491.1,1490.9,8.0957]
[1744305716268,1.34238,1490.9,1490.7,1.34256]
[1744305716469,1.34238,1490.9,1490.7,9.54806]
[1744305716672,3.2078,1491.2,1490.7,11.56172]
[1744305716973,8.2582,1491.1,1491.0,1.34229]
[1744305717164,10.03005,1491.3,1491.2,1.34211]
[1744305717369,8.688,1491.3,1491.2,1.34211]
[1744305718058,0.01007861,1491.4,1491.1,11.56099]
[1744305718263,1.34205,1491.3,1491.2,1.34207]
[1744305718775,11.47607861,1491.4,1491.1,8.2055]
[1744305718970,1.34203,1491.3,1491.2,1.34205]
[1744305719167,11.47607861,1491.4,1491.3,1.34202]
[1744305719168,0.01007861,1491.4,1491.3,1.34202]
[1744305719468,1.34211,1491.2,1491.1,8.2055]
[1744305719775,3.2078,1491.2,1490.9,0.01007861]
[1744305719968,3.2078,1491.2,1491.0,1.34229]
[1744305720169,3.21787861,1491.4,1490.9,8.28737861]
[1744305720370,1.34218,1491.2,1491.1,1.34218]
[1744305720571,11.73189,1491.3,1490.9,8.28737861]
[1744305720767,8.3768,1491.3,1490.9,8.28737861]
[1744305720968,0.01007861,1491.4,1491.0,3.2078]
[1744305721175,0.01007861,1491.4,1491.3,1.34202]
[1744305721468,1.34205,1491.3,1491.2,1.34204]
[1744305721670,11.90287861,1491.4,1490.9,0.01007861]
[1744305721874,1.34227,1491.1,1490.9,0.01007861]
[1744305722072,1.34229,1491.0,1490.9,8.28737861]
[1744305722267,1.34229,1491.0,1490.9,9.62975861]
[1744305722469,11.73211,1491.2,1490.9,8.28737861]
[1744305722669,8.3768,1491.2,1491.1,1.3422]
[1744305722878,1.35207861,1491.4,1491.3,1.34202]
[1744305723072,7.92267861,1491.4,1491.3,1.34202]
[1744305723375,0.01007861,1491.4,1491.3,4.54982]
[1744305723578,0.01007861,1491.4,1491.3,18.15002]
[1744305723875,0.01007861,1491.4,1491.3,55.74222]
[1744305724064,10.02653,1491.9,1491.8,1.34157]
[1744305724473,1.34153,1491.9,1491.8,1.34157]
[1744305724674,10.80176452,1492.0,1491.9,1.34148]
[1744305724875,7.59396452,1492.0,1491.7,8.6002]
[1744305725179,8.93540452,1492.0,1491.9,1.34148]
[1744305725376,1.34149,1491.9,1491.7,8.61027861]
[1744305725679,1.34151,1491.9,1491.8,1.34153]
[1744305725971,7.59396452,1492.0,1491.9,1.34148]
[1744305726179,7.59396452,1492.0,1491.9,14.61238]
[1744305726579,10.09713666,1492.2,1492.1,1.3413]
[1744305727179,10.09713666,1492.2,1491.8,12.49194]
[1744305727375,14.53568,1492.1,1491.7,1.35170861]
[1744305727575,11.1823,1492.1,1491.7,8.28097861]
[1744305727771,7.9745,1492.1,1491.9,1.34145]
[1744305727980,9.31584,1492.1,1492.0,8.2709]
[1744305728178,1.34148,1491.9,1491.8,1.3415]
[1744305728378,1.34143,1492.0,1491.7,8.66457861]
[1744305728681,4.54934,1491.9,1491.7,8.66457861]
[1744305728984,7.9745,1492.1,1491.9,1.34144]
[1744305729182,7.9745,1492.1,1492.0,9.99589]
[1744305729482,1.34129,1492.2,1492.0,9.99583]
[1744305729671,9.96449,1492.2,1492.1,1.3413]
[1744305729870,8.6232,1492.2,1492.1,1.3413]
[1744305730074,1.34102,1492.5,1492.1,11.56106]
[1744305730274,1.34094,1492.5,1492.2,8.6545]
[1744305730474,1.34094,1492.5,1491.7,6.00207861]
[1744305730475,3.2078,1492.3,1491.7,6.00207861]
[1744305730684,1.34157,1491.8,1491.7,0.01007861]
[1744305731088,1.34166,1491.7,1491.6,0.0984]
[1744305731281,4.54946,1491.7,1491.6,0.0984]
[1744305731580,11.0678,1491.7,1491.5,1.34184]
[1744305731787,11.0678,1491.7,1491.4,9.44937]
[1744305731983,11.0678,1491.7,1491.5,1.34179]
[1744305732176,11.0678,1491.7,1491.3,40.8]
[1744305732379,11.07787861,1491.7,1491.4,9.44941]
[1744305732583,1.35175861,1491.7,1491.6,1.34175]
[1744305732784,1.34175,1491.6,1491.5,1.34178]
[1744305733082,1.35180861,1491.7,1491.6,1.34175]
[1744305733388,0.01007861,1491.7,1491.6,4.54955]
[1744305733573,6.14358,1492.2,1492.0,1.34133]
[1744305733778,1.34128,1492.2,1492.1,8.1075]
[1744305733974,7.86,1492.2,1492.1,9.4488]
[1744305734179,1.34103,1492.4,1492.3,1.34112]
[1744305734381,7.86,1492.5,1492.1,8.1075]
[1744305734577,4.54869,1492.6,1492.2,3.35303]
[1744305734777,1.34094,1492.5,1492.3,8.6166]
[1744305734985,1.34101,1492.5,1492.3,8.6166]
[1744305735183,110.704,1492.7,1492.5,1.34094]
[1744305735384,8.66,1492.8,1492.6,9.95745]
[1744305735591,1.34076,1492.7,1492.6,8.6166]
[1744305736090,1.34112,1492.3,1492.2,14.47867861]
[1744305736291,1.34112,1492.3,1492.2,9.96788861]
[1744305736478,1.34112,1492.3,1492.2,8.62667861]
[1744305737984,8.418,1492.4,1492.2,9.96782861]
[1744305738191,1.34112,1492.3,1492.2,0.01007861]
[1744305738393,4.54892,1492.3,1492.2,0.01007861]
[1744305738586,9.54892,1492.3,1492.2,8.61e-06]
[1744305738892,14.41292,1492.3,1492.2,8.61e-06]
[1744305739097,7.8712,1492.3,1492.2,1.34121861]
[1744305739292,1.34112,1492.3,1492.2,8.61e-06]
[1744305739595,0.01007861,1492.4,1492.3,1.34112]
[1744305739797,0.01007861,1492.4,1492.3,10.05532]
[1744305740592,1.35110861,1492.4,1492.3,8.32881539]
[1744305740792,1.34112,1492.3,1492.2,8.61e-06]
[1744305740988,0.01007861,1492.4,1492.3,1.34112]
[1744305741489,3.21787861,1492.4,1492.2,8.61e-06]
[1744305741684,1.34112,1492.3,1492.2,8.61e-06]
[1744305741880,1.34112,1492.3,1491.9,0.0984]
[1744305741881,1.34139,1492.0,1491.9,0.0984]
[1744305742085,4.54919,1492.0,1491.9,0.0984]
[1744305742288,1.34166,1491.7,1491.6,1.34171]
[1744305742500,1.34177,1491.6,1491.5,1.3418]
[1744305742690,1.34172,1491.7,1491.6,1.34174]
[1744305742994,1.34166,1491.7,1491.6,1.34174]
[1744305743193,1.34175,1491.6,1491.5,0.01007861]
[1744305743895,4.54955,1491.6,1491.5,0.01007861]
[1744305744089,0.01007861,1491.8,1491.7,1.34166]
[1744305745393,1.34166,1491.7,1491.6,8.1396]
[1744305745596,1.34175,1491.6,1491.5,0.01007861]
[1744305745798,17.31,1491.6,1490.7,5.992]
[1744305745986,17.31,1491.6,1490.8,8.1396]
[1744305745987,3.2078,1491.1,1490.8,8.1396]
[1744305746191,4.55008,1491.1,1490.9,1.34236]
[1744305746490,13.20203,1491.1,1490.9,1.34233]
[1744305746694,13.20206,1491.1,1490.9,1.34236]
[1744305746896,3.3551,1491.3,1491.1,1.34214]
[1744305746897,1.34204,1491.3,1491.1,1.34214]
[1744305747198,1.34204,1491.3,1491.2,8.4604]
[1744305747690,1.34202,1491.3,1491.2,8.4604]
[1744305748097,14.904,1491.4,1491.0,1.34227]
[1744305748396,1.34222,1491.1,1491.0,8.4604]
[1744305748599,3.2078,1491.2,1490.9,0.01007861]
[1744305748787,12.89129,1491.0,1490.9,0.01007861]
[1744305748988,8.3412,1491.0,1490.9,1.35245861]
[1744305749192,4.54993,1491.2,1490.9,5.01007861]
[1744305749386,1.3422,1491.1,1491.0,8.4604]
[1744305750104,1.34229,1491.0,1490.9,0.01007861]
[1744305750295,8.5328,1491.1,1490.9,0.01007861]
[1744305750494,9.87501,1491.1,1491.0,1.34229]
[1744305750789,9.87501,1491.1,1491.0,8.5813]
[1744305750995,1.34229,1491.0,1490.9,0.01007861]
[1744305751196,3.2078,1491.2,1490.9,0.01007861]
[1744305751392,1.34207,1491.3,1490.9,6.57381861]
[1744305751592,1.34209,1491.3,1491.1,1.3422]
[1744305751902,6.44298154,1491.4,1491.3,1.34202]
[1744305752100,5.10101154,1491.4,1491.3,4.54982]
[1744305752404,10.09713666,1491.7,1491.5,1.34176]
[1744305752696,10.09713666,1491.7,1491.6,12.85285]
[1744305753098,10.09713666,1491.7,1491.6,17.85285]
[1744305753299,10.09713666,1491.7,1491.6,23.84485]
[1744305754299,9.87422681,1491.7,1491.6,64.64485]
[1744305755002,12.0126,1492.4,1491.6,64.64485]
[1744305755003,11.48949,1492.7,1492.3,1.34108]
[1744305755199,8.1541,1492.6,1492.5,1.34094]
[1744305755407,3.2078,1492.9,1492.5,3.2078]
[1744305755696,102.276,1493.3,1492.8,1.34062]
[1744305755697,3.35056,1493.3,1492.8,1.34062]
[1744305755902,8.2588,1493.2,1492.7,4.54849]
[1744305756100,8.26887861,1493.2,1492.9,0.01007861]
[1744305756294,1.34046,1493.1,1492.9,0.01007861]
[1744305756499,9.59929,1493.0,1492.9,0.01007861]
[1744305756701,0.01007861,1493.2,1492.9,0.01007861]
[1744305757008,0.01007861,1493.2,1493.1,1.3404]
[1744305757495,0.01007861,1493.2,1493.1,4.5482]
[1744305758103,0.01007861,1493.2,1493.1,1.3404]
[1744305758300,0.01007861,1493.2,1493.0,8.719]
[1744305758301,1.3404,1493.1,1493.0,8.719]
[1744305758503,1.35046861,1493.2,1493.0,10.05949]
[1744305758705,0.01007861,1493.2,1493.1,1.3404]
[1744305758908,1.3404,1493.1,1493.0,10.05943]
[1744305759098,0.01007861,1493.2,1492.9,0.01007861]
[1744305759298,1.34049,1493.0,1492.9,8.14467861]
[1744305759503,1.34049,1493.0,1492.9,0.01007861]
[1744305759803,10.34581861,1493.2,1493.0,1.34045]
[1744305760111,1.34049,1493.0,1492.9,0.01007861]
[1744305760606,6.34049,1493.0,1492.9,0.01007861]
[1744305760802,15.33589,1493.0,1492.9,0.01007861]
[1744305760996,15.33589,1493.0,1492.3,3.2078]
[1744305760997,3.35171,1492.8,1492.3,3.2078]
[1744305761208,1.34054,1493.0,1492.8,1.34062]
[1744305761404,1.34058,1492.9,1492.7,1.34072]
[1744305761702,1.3406,1492.9,1492.5,3.35235]
[1744305762003,8.9954,1493.0,1492.6,15.01692]
[1744305762201,1.34055,1493.0,1492.8,1.34064]
[1744305762399,8.0991,1493.1,1493.0,1.34049]
[1744305762599,1.35043861,1493.2,1493.1,1.3404]
[1744305762600,10.10083861,1493.2,1493.1,1.3404]
[1744305762804,10.10083861,1493.2,1493.0,1.34042]
[1744305763408,1.3404,1493.1,1492.9,9.79751]
[1744305763802,1.34049,1493.0,1492.9,8.457]
[1744305764202,1.34046,1493.1,1492.9,9.79753]
[1744305764501,0.01007861,1493.2,1493.1,1.3404]
[1744305764702,0.01007861,1493.2,1493.1,10.1228]
[1744305764905,8.5545,1493.6,1493.5,1.34004]
[1744305765107,8.5545,1493.8,1493.5,1.34004]
[1744305765409,8.634,1493.9,1493.6,8.7824]
[1744305765609,1.33986,1493.7,1493.6,8.7824]
[1744305766306,0.0099832,1493.8,1493.7,1.33986]
[1744305766508,0.0099832,1493.8,1493.7,4.54766]
[1744305766706,1.33917,1494.5,1493.9,3.34922]
[1744305766908,1.33916,1494.5,1494.3,1.33928]
[1744305767111,1.33916,1494.5,1494.0,6.55679]
[1744305767112,1.3391,1494.6,1494.2,3.2078]
[1744305767411,3.34765,1494.6,1494.2,3.2078]
[1744305767615,3.34765,1494.6,1494.0,40.8]
[1744305767616,11.7623,1494.5,1494.0,40.8]
[1744305767804,13.10152,1494.5,1494.3,1.34934452]
[1744305768106,13.10151,1494.5,1494.3,1.34936452]
[1744305768414,13.10151,1494.5,1494.4,1.33923]
[1744305768415,18.55698586,1494.5,1494.4,1.33923]
[1744305768607,15.34918586,1494.5,1494.4,1.33923]
[1744305769509,15.34918586,1494.5,1494.4,9.54703]
[1744305769812,15.27343286,1494.7,1494.6,1.33906]
[1744305770008,12.10205209,1494.7,1494.6,18.17586]
[1744305770204,12.10205209,1494.7,1494.6,33.00846219]
[1744305770205,10.61751399,1494.7,1494.6,33.00846219]
[1744305770410,20.46558115,1494.9,1494.8,1.33888]
[1744305770609,19.34258115,1494.9,1494.8,45.34668]
[1744305770906,15.34437115,1494.9,1494.8,50.34668]
[1744305771211,23.02377879,1495.2,1495.1,1.33861]
[1744305771413,23.02377879,1495.2,1495.1,4.54641]
[1744305771715,20.77775879,1495.2,1495.1,9.54641]
[1744305772022,24.43711676,1495.4,1495.3,1.33843]
[1744305772200,24.43711676,1495.4,1495.3,4.54623]
[1744305772514,24.43711676,1495.4,1495.3,3.2078]
[1744305772709,24.43711676,1495.4,1495.2,3.21784452]
[1744305772710,30.51962624,1495.4,1495.2,3.21784452]
[1744305772907,10.62873948,1495.3,1495.2,0.01004452]
[1744305773103,18.74373948,1495.3,1495.2,0.01004452]
[1744305773709,23.74373948,1495.3,1495.2,0.01004452]
[1744305774512,23.74373948,1495.3,1495.2,4.52e-06]
[1744305775205,23.74373948,1495.3,1494.5,3.2078]
[1744305775206,16.3228,1495.3,1494.5,3.2078]
[1744305775507,6.55487,1494.9,1494.3,8.6933]
[1744305775703,3.2078,1494.5,1494.1,1.3395]
[1744305775898,8.6872,1494.4,1494.2,8.6933]
[1744305776106,8.6872,1494.4,1494.3,42.13932]
[1744305776303,8.69724452,1494.4,1494.3,42.13932]
[1744305776808,4.52e-06,1494.4,1494.3,58.97012]
[1744305777006,8.4175,1495.2,1494.9,1.33876]
[1744305777204,1.33863,1495.1,1494.9,1.33872]
[1744305777510,1.33861,1495.1,1494.9,9.96211]
[1744305777810,9.75609,1495.2,1495.0,1.3387]
[1744305778004,8.4175,1495.2,1494.9,8.6234]
[1744305778312,9.75609,1495.2,1495.0,1.44691452]
[1744305778515,9.75609,1495.2,1495.0,1.44690452]
[1744305778807,8.4175,1495.2,1495.1,1.33861]
[1744305779111,1.33861,1495.1,1495.0,0.10824452]
[1744305779614,9.75611,1495.1,1495.0,0.10824452]
[1744305779812,14.75611,1495.1,1495.0,0.10824452]
[1744305780415,13.4175,1495.1,1494.5,3.2078]
[1744305780610,3.2078,1494.9,1494.3,52.67048]
[1744305780806,3.53645638,1494.8,1494.7,1.33897]
[1744305781107,3.53645638,1494.8,1494.5,3.2078]
[1744305781108,2.19754638,1494.8,1494.5,8.5222]
[1744305781515,1.33899,1494.7,1494.5,8.5222]
[1744305781813,1.33898,1494.7,1494.6,1.339]
[1744305782016,1.34894452,1494.8,1494.7,1.33897]
[1744305782222,0.01004452,1494.8,1494.7,1.33897]
[1744305783114,0.01004452,1494.8,1494.7,9.54677]
[1744305783316,0.01004452,1494.8,1494.7,4.54677]
[1744305783512,0.01004452,1494.8,1494.5,8.53224452]
[1744305783819,1.33902,1494.7,1494.6,1.33904]
[1744305784413,3.04368226,1495.0,1494.7,1.33897]
[1744305784716,6.55435,1495.1,1494.5,3.35790452]
[1744305784910,4.54686,1494.6,1494.5,0.01004452]
[1744305785211,3.2078,1494.9,1494.5,0.01004452]
[1744305785416,3.2078,1495.1,1494.8,1.33888]
[1744305785715,1.33879,1494.9,1494.6,6.55545]
[1744305786017,1.33898,1494.7,1494.6,1.33906]
[1744305786315,1.33902,1494.7,1494.6,1.33902]
[1744305786622,1.33895,1494.8,1494.7,1.33894]
[1744305786914,8.7054,1494.8,1494.6,1.33899]
[1744305787312,8.7054,1494.8,1494.5,0.01004452]
[1744305787516,1.33906,1494.6,1494.5,1.34912452]
[1744305787715,5.2139,1495.0,1494.7,4.68635]
[1744305788015,8.7054,1495.1,1494.6,3.34744]
[1744305788214,3.2078,1495.2,1495.1,1.33861]
[1744305788521,10.04385,1495.3,1495.2,1.33852]
[1744305788719,1.33856,1495.2,1495.1,1.33855]
[1744305789019,8.7054,1495.3,1495.0,8.9348]
[1744305789319,8.7054,1495.3,1495.2,1.33852]
[1744305789320,3.2078,1495.3,1495.2,1.33852]
[1744305789510,5.2139,1495.4,1495.2,1.33845]
[1744305789817,1.33849,1495.3,1495.2,1.3385]
[1744305790215,1.33868,1495.1,1495.0,1.33868]
[1744305790513,1.33863,1495.1,1495.0,1.33863]
[1744305790706,14.76671,1495.2,1494.8,11.9288]
[1744305790907,11.4204,1495.2,1495.1,1.33861]
[1744305791113,8.2126,1495.2,1495.1,1.33861]
[1744305791318,9.55112,1495.2,1495.1,1.33861]
[1744305791511,8.2126,1495.2,1495.0,1.33866]
[1744305791718,1.33865,1495.1,1495.0,1.33866]
[1744305791917,8.2126,1495.2,1495.1,1.33861]
[1744305792317,3.34653,1495.1,1494.6,5.992]
[1744305792520,3.2078,1494.9,1494.5,0.01004452]
[1744305792821,8.6746,1494.8,1494.7,1.33888]
[1744305793221,10.01348,1494.8,1494.7,1.33888]
[1744305793919,1.33901,1494.7,1494.5,0.01004452]
[1744305794120,10.01366,1494.6,1494.5,0.01004452]
[1744305794424,8.6746,1494.6,1494.5,1.34919452]
[1744305794615,10.01366,1494.6,1494.5,1.34919452]